bitfinex/quotes_SOLUSD_20251120
["timestamp","ask_amount","ask_price","bid_price","bid_amount"]
[1763673708979,1.8,135.16,135.11,12.7180893]
[1763673709285,1.8,135.16,135.15,11.97795164]
[1763673709490,4.92491474,135.16,135.15,11.97795164]
[1763673711093,1.8,135.19,135.15,11.97795164]
[1763673711289,4.9284956,135.18,135.14,0.73997336]
[1763673711493,4.9284956,135.17,135.14,0.73997336]
[1763673711723,1.8,135.19,135.14,0.73997336]
[1763673711924,4.93059812,135.18,135.14,0.73997336]
[1763673712109,1.8,135.2,135.14,2.53997336]
[1763673712421,4.93059786,135.19,135.14,2.53997336]
[1763673712722,0.1,135.21,135.2,18.12096]
[1763673713025,5.03291813,135.21,135.2,18.12096]
[1763673713226,0.1,135.21,135.2,18.12096]
[1763673713526,0.1,135.21,135.2,30.09891164]
[1763673714294,0.1,135.21,135.2,11.97795164]
[1763673714516,5.02823659,135.21,135.2,11.97795164]
[1763673714917,5.02823659,135.21,135.2,15.20725554]
[1763673715294,1.93593088,135.25,135.2,15.20725554]
[1763673715495,3.73593088,135.25,135.24,7.60362777]
[1763673715694,4.92499157,135.28,135.24,18.12096]
[1763673715924,1.8,135.34,135.27,7.60362777]
[1763673715925,5.63347876,135.31,135.27,7.60362777]
[1763673716151,4.92374925,135.3,135.24,18.12096]
[1763673716308,4.92374925,135.29,135.24,18.12096]
[1763673716513,0.71,135.29,135.28,7.60362777]
[1763673716825,0.71,135.29,135.24,7.60362777]
[1763673716826,0.71,135.28,135.24,7.60362777]
[1763673716997,4.92228855,135.27,135.23,7.60362777]
[1763673717321,6.72228855,135.26,135.24,7.60362777]
[1763673717506,1.8,135.26,135.24,7.60362777]
[1763673717706,0.71,135.25,135.24,7.60362777]
[1763673718799,0.71,135.25,135.16,2.53986386]
[1763673719018,0.71,135.25,135.19,7.60362777]
[1763673719019,105.63228855,135.25,135.19,7.60362777]
[1763673719198,10.83648829,135.24,135.11,2.0]
[1763673719399,4.92228855,135.23,135.18,7.60362777]
[1763673719628,6.72228855,135.22,135.12,7.60362777]
[1763673719839,4.92228855,135.21,135.18,7.60362777]
[1763673720013,5.63228855,135.2,135.12,7.60362777]
[1763673720210,4.92228855,135.19,135.15,7.60362777]
[1763673720417,7.43228855,135.18,135.15,7.60362777]
[1763673720718,1.8,135.17,135.12,7.60362777]
[1763673720906,2.51,135.17,135.12,7.60362777]
[1763673721212,0.71,135.16,135.09,0.74024724]
[1763673721928,1.8,135.15,135.12,7.60362777]
[1763673722119,6.72228855,135.15,135.06,18.12096]
[1763673722318,0.71,135.14,135.12,7.60362777]
[1763673722908,0.71,135.14,135.07,18.12096]
[1763673723106,0.71,135.14,135.12,7.60362777]
[1763673723634,4.92228855,135.16,135.13,7.60362777]
[1763673723826,0.71,135.15,135.07,18.86131685]
[1763673724026,2.51,135.15,135.07,18.86131685]
[1763673724406,0.71,135.14,135.07,18.86131685]
[1763673725023,0.71,135.14,135.12,7.60362777]
[1763673725196,0.71,135.14,135.13,7.60362777]
[1763673725197,2.51,135.14,135.13,7.60362777]
[1763673725906,1.8,135.15,135.13,7.60362777]
[1763673726202,0.71,135.17,135.14,7.60362777]
[1763673726403,0.71,135.2,135.16,7.60362777]
[1763673726623,1.8,135.21,135.14,0.73997336]
[1763673726832,0.71,135.19,135.17,7.60362777]
[1763673727511,0.71,135.19,135.14,7.60362777]
[1763673727850,5.65162127,135.19,135.14,7.60362777]
[1763673728433,55.65162127,135.18,135.12,7.60362777]
[1763673728678,4.94162127,135.17,135.12,7.60362777]
[1763673728824,4.94162127,135.16,135.13,7.60362777]
[1763673729025,1.8,135.15,135.14,7.60362777]
[1763673729211,1.8,135.15,135.13,7.60362777]
[1763673729212,2.51,135.15,135.13,7.60362777]
[1763673729740,0.71,135.14,135.13,7.60362777]
[1763673730051,0.71,135.16,135.13,7.60362777]
[1763673730219,5.65780209,135.19,135.14,7.60362777]
[1763673730407,1.8,135.16,135.14,7.60362777]
[1763673730610,1.8,135.16,135.13,7.60362777]
[1763673730809,0.71,135.15,135.13,7.60362777]
[1763673731505,2.51,135.15,135.13,7.60362777]
[1763673732007,0.71,135.15,135.13,7.60362777]
[1763673732327,5.65780209,135.18,135.14,7.60362777]
[1763673732551,1.8,135.17,135.15,7.60362777]
[1763673733039,0.71,135.17,135.15,7.60362777]
[1763673733216,2.51,135.17,135.15,7.60362777]
[1763673733833,0.71,135.19,135.16,7.60362777]
[1763673734020,1.8,135.17,135.16,7.60362777]
[1763673734416,2.51,135.17,135.15,7.60362777]
[1763673734652,2.51,135.17,135.1,18.12096]
[1763673734848,2.51,135.17,135.15,7.60362777]
[1763673735227,2.51,135.17,135.11,0.74013766]
[1763673735536,2.51,135.17,135.15,7.60362777]
[1763673735743,7.60362777,135.2,135.13,7.60362777]
[1763673735943,10.11362777,135.2,135.13,7.60362777]
[1763673736524,8.31362777,135.19,135.12,7.60362777]
[1763673737017,0.71,135.19,135.13,7.60362777]
[1763673737225,0.71,135.19,135.1,19.92096]
[1763673737226,8.31362777,135.22,135.15,7.60362777]
[1763673737462,7.60362777,135.21,135.15,7.60362777]
[1763673737758,7.60362777,135.2,135.14,1.8]
[1763673738050,7.60362777,135.2,135.14,10.14360113]
[1763673738362,8.31362777,135.21,135.14,10.14360113]
[1763673738656,0.71,135.21,135.15,7.60362777]
[1763673739631,4.95884266,135.25,135.16,7.60362777]
[1763673739825,7.60362777,135.25,135.17,18.12096]
[1763673740030,8.31362777,135.25,135.19,7.60362777]
[1763673740359,13.25247043,135.27,135.21,7.60362777]
[1763673740654,8.29362777,135.27,135.21,7.60362777]
[1763673741042,7.60362777,135.26,135.2,7.60362777]
[1763673741239,7.60362777,135.26,135.18,1.8]
[1763673741240,7.60362777,135.24,135.18,1.8]
[1763673741442,8.29362777,135.24,135.18,9.40362777]
[1763673741954,8.29362777,135.23,135.18,1.8]
[1763673742155,7.60362777,135.2,135.15,1.8]
[1763673742354,7.60362777,135.19,135.13,8.34365589]
[1763673742731,8.29362777,135.19,135.13,8.34365589]
[1763673743635,0.69,135.19,135.14,7.60362777]
[1763673744357,0.69,135.19,135.13,68.80362777]
[1763673744654,0.69,135.19,135.14,7.60362777]
[1763673745030,0.69,135.19,135.15,7.60362777]
[1763673745635,50.0,135.25,135.15,7.60362777]
[1763673745842,0.69,135.22,135.18,7.60362777]
[1763673746067,7.60362777,135.24,135.18,68.80362777]
[1763673746271,0.69,135.24,135.19,7.60362777]
[1763673746631,7.60362777,135.26,135.2,7.60362777]
[1763673746833,0.69,135.28,135.22,7.60362777]
[1763673747854,0.69,135.3,135.25,7.60362777]
[1763673748282,8.29362777,135.3,135.24,9.40362777]
[1763673748693,50.0,135.35,135.25,7.60362777]
[1763673748849,0.69,135.34,135.27,18.12096]
[1763673749049,7.60362777,135.31,135.25,9.40362777]
[1763673749290,7.60362777,135.32,135.25,9.40362777]
[1763673749649,0.69,135.31,135.25,1.8]
[1763673749849,8.29362777,135.31,135.25,9.40362777]
[1763673750047,0.69,135.31,135.25,9.40362777]
[1763673750249,0.66,135.31,135.25,9.40362777]
[1763673750857,8.26362777,135.31,135.25,9.40362777]
[1763673751164,1.8,135.34,135.22,7.60362777]
[1763673751165,0.66,135.3,135.22,7.60362777]
[1763673751398,7.60362777,135.29,135.22,7.60362777]
[1763673751613,0.66,135.3,135.21,1.8]
[1763673751614,7.60362777,135.27,135.21,1.8]
[1763673751789,7.60362777,135.26,135.21,1.8]
[1763673752122,7.60362777,135.25,135.21,1.8]
[1763673752533,0.66,135.24,135.19,7.60362777]
[1763673752815,0.66,135.24,135.13,0.74002812]
[1763673752816,0.66,135.26,135.21,7.60362777]
[1763673753217,0.66,135.26,135.22,7.60362777]
[1763673753822,0.66,135.29,135.24,7.60362777]
[1763673754001,0.66,135.29,135.2,8.34327274]
[1763673754209,0.66,135.28,135.25,7.60362777]
[1763673754528,0.66,135.3,135.25,7.60362777]
[1763673754739,8.26362777,135.29,135.23,1.8]
[1763673754890,0.66,135.28,135.23,1.8]
[1763673755092,8.26362777,135.28,135.19,18.12096]
[1763673755314,0.66,135.28,135.22,7.60362777]
[1763673755626,0.66,135.27,135.22,7.60362777]
[1763673756186,0.66,135.27,135.17,0.73980912]
[1763673756392,0.66,135.27,135.21,7.60362777]
[1763673756814,0.66,135.27,135.22,7.60362777]
[1763673757331,0.66,135.27,135.18,20.6607144]
[1763673757332,0.66,135.27,135.21,7.60362777]
[1763673757630,0.66,135.27,135.23,7.60362777]
[1763673758230,0.66,135.27,135.22,7.60362777]
[1763673758725,0.66,135.27,135.24,7.60362777]
[1763673759223,0.66,135.27,135.19,7.60362777]
[1763673759389,8.26362777,135.27,135.21,7.60362777]
[1763673759900,0.66,135.26,135.21,7.60362777]
[1763673760213,8.26362777,135.26,135.2,7.60362777]
[1763673760422,0.66,135.26,135.21,7.60362777]
[1763673760594,9.40362777,135.28,135.17,18.86076912]
[1763673760923,9.40362777,135.28,135.21,7.60362777]
[1763673760924,0.66,135.25,135.21,7.60362777]
[1763673761222,0.66,135.25,135.17,18.86076912]
[1763673761401,0.66,135.25,135.19,7.60362777]
[1763673761811,0.66,135.25,135.2,7.60362777]
[1763673762198,0.66,135.25,135.21,7.60362777]
[1763673764438,0.66,135.25,135.19,0.73969968]
[1763673764598,0.66,135.25,135.2,7.60362777]
[1763673766101,0.66,135.25,135.21,7.60362777]
[1763673767504,0.66,135.25,135.22,7.60362777]
[1763673768000,0.66,135.29,135.23,7.60362777]
[1763673768214,0.66,135.28,135.18,2.5397544]
[1763673768413,0.66,135.28,135.24,7.60362777]
[1763673768808,0.66,135.28,135.23,7.60362777]
[1763673769499,0.66,135.28,135.22,9.40362777]
[1763673769817,0.66,135.28,135.23,7.60362777]
[1763673770502,0.66,135.28,135.22,9.40362777]
[1763673771434,0.66,135.28,135.23,7.60362777]
[1763673772623,0.66,135.28,135.22,1.8]
[1763673772624,8.26362777,135.28,135.22,1.8]
[1763673772813,7.60362777,135.27,135.2,7.60362777]
[1763673773132,8.29362777,135.27,135.19,1.8]
[1763673773421,2.49,135.26,135.15,0.7399186]
[1763673773609,0.69,135.25,135.18,7.60362777]
[1763673773810,0.69,135.25,135.19,7.60362777]
[1763673774410,0.69,135.25,135.18,7.60362777]
[1763673774727,0.69,135.25,135.16,1.8]
[1763673774906,0.69,135.25,135.21,7.60362777]
[1763673775104,0.69,135.25,135.2,7.60362777]
[1763673775524,0.69,135.25,135.21,7.60362777]
[1763673776125,0.69,135.25,135.22,7.60362777]
[1763673776419,0.69,135.25,135.21,7.60362777]
[1763673776923,0.69,135.25,135.21,11.91486842]
[1763673777113,0.69,135.25,135.23,11.91486842]
[1763673777321,0.69,135.25,135.22,11.91486842]
[1763673777612,0.69,135.25,135.21,11.91486842]
[1763673778010,0.69,135.25,135.19,11.91486842]
[1763673778313,5.51789426,135.24,135.19,11.91486842]
[1763673778530,0.69,135.25,135.2,11.91486842]
[1763673778709,0.69,135.24,135.2,11.91486842]
[1763673779114,6.12998631,135.3,135.21,1.8]
[1763673779302,6.12998631,135.3,135.26,11.91486842]
[1763673779303,0.69,135.29,135.26,11.91486842]
[1763673780319,0.69,135.29,135.25,11.91486842]
[1763673780520,0.69,135.29,135.26,11.91486842]
[1763673780901,10.46900822,135.31,135.28,11.91486842]
[1763673781123,0.69,135.36,135.3,11.91486842]
[1763673781430,0.69,135.35,135.31,11.91486842]
[1763673781629,0.69,135.35,135.3,73.11486842]
[1763673781821,0.69,135.35,135.31,11.91486842]
[1763673782936,5.65223025,135.37,135.33,11.91486842]
[1763673783153,5.65223025,135.37,135.3,61.2]
[1763673783154,0.69,135.35,135.3,61.2]
[1763673783434,2.49,135.35,135.29,11.91486842]
[1763673783731,22.36777994,135.34,135.28,1.8]
[1763673783945,72.36777994,135.33,135.26,11.91486842]
[1763673784102,22.36777994,135.32,135.25,11.91486842]
[1763673784308,10.45291152,135.31,135.26,11.91486842]
[1763673784533,2.49,135.31,135.26,11.91486842]
[1763673784843,23.06173882,135.3,135.24,11.91486842]
[1763673785001,12.60486842,135.3,135.24,11.91486842]
[1763673785205,0.69,135.29,135.24,11.91486842]
[1763673786140,0.69,135.31,135.27,11.91486842]
[1763673786307,0.69,135.31,135.28,11.91486842]
[1763673786719,0.69,135.31,135.29,11.91486842]
[1763673787329,0.69,135.34,135.26,2.53931687]
[1763673787510,0.69,135.34,135.3,11.91486842]
[1763673787705,12.60486842,135.34,135.29,1.8]
[1763673787937,0.69,135.34,135.29,11.91486842]
[1763673788115,0.69,135.34,135.3,11.91486842]
[1763673788876,0.69,135.37,135.32,11.91486842]
[1763673789051,0.69,135.36,135.33,11.91486842]
[1763673789338,0.69,135.37,135.33,11.91486842]
[1763673789514,0.69,135.36,135.33,11.91486842]
[1763673790034,0.69,135.36,135.32,13.71486842]
[1763673790238,12.60486842,135.36,135.27,18.12096]
[1763673790421,0.69,135.36,135.31,11.91486842]
[1763673790620,0.69,135.36,135.33,11.91486842]
[1763673791910,0.69,135.36,135.32,11.91486842]
[1763673792115,0.69,135.36,135.31,1.8]
[1763673792329,0.69,135.36,135.31,13.71486842]
[1763673793031,0.69,135.36,135.32,11.91486842]
[1763673793250,0.69,135.36,135.31,11.91486842]
[1763673793455,0.69,135.36,135.32,11.91486842]
[1763673793628,0.69,135.36,135.3,1.8]
[1763673793833,0.69,135.36,135.31,11.91486842]
[1763673794041,0.69,135.36,135.32,11.91486842]
[1763673794439,0.79,135.39,135.31,18.12096]
[1763673794740,0.79,135.39,135.35,11.91486842]
[1763673795363,0.79,135.39,135.36,11.91486842]
[1763673795770,0.1,135.39,135.38,11.91486842]
[1763673796541,0.1,135.42,135.38,11.91486842]
[1763673796750,0.1,135.42,135.41,11.91486842]
[1763673796963,0.1,135.42,135.41,13.71486842]
[1763673797158,0.1,135.42,135.32,0.73898906]
[1763673797159,0.79,135.42,135.32,0.73898906]
[1763673797356,0.79,135.42,135.37,11.91486842]
[1763673797558,12.70486842,135.42,135.35,11.91486842]
[1763673798067,0.69,135.41,135.35,11.91486842]
[1763673798280,0.69,135.41,135.38,11.91486842]
[1763673798641,0.69,135.41,135.34,2.53887985]
[1763673798642,0.69,135.41,135.34,20.65983985]
[1763673798881,0.69,135.41,135.39,11.91486842]
[1763673799167,0.1,135.42,135.39,11.91486842]
[1763673799383,0.79,135.42,135.39,11.91486842]
[1763673799542,0.79,135.42,135.37,13.71486842]
[1763673799742,0.79,135.42,135.34,18.85983985]
[1763673799743,0.79,135.42,135.36,13.71486842]
[1763673799938,0.79,135.42,135.37,11.91486842]
[1763673800140,0.79,135.42,135.36,13.71486842]
[1763673800141,12.70486842,135.42,135.36,13.71486842]
[1763673800341,12.70486842,135.42,135.36,11.91486842]
[1763673800548,12.63486842,135.41,135.35,11.91486842]
[1763673800751,0.1,135.42,135.36,11.91486842]
[1763673800752,0.72,135.4,135.36,11.91486842]
[1763673800962,0.72,135.4,135.37,11.91486842]
[1763673801265,0.72,135.4,135.38,11.91486842]
[1763673801571,0.1,135.42,135.39,11.91486842]
[1763673801769,0.1,135.42,135.41,11.91486842]
[1763673801971,0.1,135.42,135.4,1.8]
[1763673802473,0.1,135.42,135.41,1.8]
[1763673802767,0.1,135.42,135.41,13.71486842]
[1763673803166,0.1,135.42,135.41,1.8]
[1763673803374,0.1,135.42,135.41,13.71486842]
[1763673803555,1.8,135.52,135.41,13.71486842]
[1763673803752,0.72,135.5,135.46,11.91486842]
[1763673803965,0.72,135.5,135.47,11.91486842]
[1763673804974,0.72,135.5,135.45,11.91486842]
[1763673805454,12.63486842,135.5,135.44,13.71486842]
[1763673805655,12.63486842,135.5,135.44,11.91486842]
[1763673805887,50.0,135.53,135.43,1.8]
[1763673805888,12.63486842,135.49,135.43,1.8]
[1763673806171,12.63486842,135.49,135.43,13.71486842]
[1763673806387,0.72,135.48,135.43,13.71486842]
[1763673807176,0.72,135.48,135.44,11.91486842]
[1763673807377,0.72,135.48,135.43,1.8]
[1763673807551,0.72,135.48,135.45,11.91486842]
[1763673807750,0.72,135.48,135.43,1.8]
[1763673807950,0.72,135.48,135.46,11.91486842]
[1763673808669,0.72,135.48,135.44,11.91486842]
[1763673808866,0.72,135.48,135.4,0.73855243]
[1763673808867,0.72,135.48,135.43,1.8]
[1763673809066,12.63486842,135.48,135.42,11.91486842]
[1763673809259,11.91486842,135.46,135.39,11.91486842]
[1763673809650,0.72,135.45,135.38,1.8]
[1763673809849,0.72,135.45,135.42,11.91486842]
[1763673810081,0.72,135.45,135.41,11.91486842]
[1763673810575,51.8,135.5,135.41,1.8]
[1763673810752,0.72,135.47,135.41,1.8]
[1763673810952,0.72,135.47,135.43,11.91486842]
[1763673811163,0.72,135.47,135.41,1.8]
[1763673811466,12.63486842,135.47,135.4,11.91486842]
[1763673811666,11.91486842,135.46,135.4,11.91486842]
[1763673811866,0.72,135.45,135.41,11.91486842]
[1763673812373,0.72,135.45,135.4,11.91486842]
[1763673812677,0.72,135.45,135.41,11.91486842]
[1763673812879,0.72,135.45,135.42,11.91486842]
[1763673813190,29.70978769,135.49,135.36,12.6536391]
[1763673813191,18.12096,135.49,135.41,1.8]
[1763673813350,0.72,135.45,135.43,11.91486842]
[1763673813555,12.63486842,135.48,135.42,11.91486842]
[1763673814079,0.72,135.47,135.42,11.91486842]
[1763673814280,0.72,135.47,135.41,1.8]
[1763673814562,12.63486842,135.47,135.41,13.71486842]
[1763673814789,0.72,135.47,135.42,11.91486842]
[1763673814988,0.72,135.46,135.43,11.91486842]
[1763673815894,0.72,135.46,135.44,11.91486842]
[1763673816056,0.72,135.46,135.45,11.91486842]
[1763673816259,0.72,135.48,135.45,11.91486842]
[1763673816483,0.72,135.48,135.46,11.91486842]
[1763673816801,0.72,135.48,135.41,1.8]
[1763673816802,12.63486842,135.48,135.41,1.8]
[1763673819282,0.72,135.47,135.43,11.91486842]
[1763673819596,0.72,135.47,135.44,11.91486842]
[1763673819766,0.72,135.47,135.41,1.8]
[1763673819959,68.12096,135.51,135.44,11.91486842]
[1763673820167,11.91486842,135.46,135.35,10.52599504]
[1763673820407,11.91486842,135.45,135.39,11.91486842]
[1763673820704,12.63486842,135.45,135.38,11.91486842]
[1763673820899,0.72,135.44,135.39,11.91486842]
[1763673821063,0.72,135.44,135.36,1.8]
[1763673821274,9.78882769,135.43,135.35,11.91486842]
[1763673821472,11.91486842,135.41,135.33,1.8]
[1763673821661,2.52,135.42,135.35,11.91486842]
[1763673821868,0.72,135.41,135.37,11.91486842]
[1763673822096,0.72,135.41,135.36,11.91486842]
[1763673822306,0.72,135.41,135.33,1.8]
[1763673822505,0.72,135.42,135.4,11.91486842]
[1763673823387,0.72,135.42,135.41,11.91486842]
[1763673823791,0.72,135.42,135.4,11.91486842]
[1763673824218,0.72,135.42,135.39,11.91486842]
[1763673824420,0.72,135.42,135.33,0.73893445]
[1763673824638,0.72,135.42,135.39,11.91486842]
[1763673826200,0.72,135.42,135.4,11.91486842]
[1763673827592,0.72,135.42,135.37,1.8]
[1763673827811,0.72,135.42,135.38,11.91486842]
[1763673828005,12.63486842,135.42,135.36,11.91486842]
[1763673828220,12.63486842,135.42,135.35,11.91486842]
[1763673828221,11.91486842,135.41,135.35,11.91486842]
[1763673828424,2.52,135.4,135.35,11.91486842]
[1763673828730,2.52,135.4,135.33,1.8]
[1763673828731,0.72,135.4,135.33,1.8]
[1763673829023,11.91486842,135.37,135.32,11.91486842]
[1763673829332,1.8,135.37,135.32,11.91486842]
[1763673829536,0.72,135.36,135.32,11.91486842]
[1763673829893,0.72,135.36,135.33,11.91486842]
[1763673830219,0.72,135.36,135.32,11.91486842]
[1763673830420,11.91486842,135.35,135.29,1.8]
[1763673830633,13.71486842,135.34,135.26,2.0]
[1763673830811,12.63486842,135.33,135.26,2.0]
[1763673831128,12.63486842,135.33,135.28,11.91486842]
[1763673831334,12.63486842,135.32,135.27,11.91486842]
[1763673831499,11.91486842,135.3,135.26,0.2]
[1763673831808,2.52,135.31,135.26,0.2]
[1763673832012,12.63486842,135.3,135.26,0.2]
[1763673832328,12.63486842,135.3,135.18,0.7397544]
[1763673832329,11.91486842,135.27,135.18,0.7397544]
[1763673832617,11.91486842,135.27,135.21,11.91486842]
[1763673832618,1.8,135.26,135.21,11.91486842]
[1763673832789,14.43486842,135.26,135.18,1.8]
[1763673832991,11.91486842,135.24,135.18,1.8]
[1763673833225,0.72,135.25,135.18,1.8]
[1763673833226,12.63486842,135.23,135.18,1.8]
[1763673833401,0.72,135.22,135.17,11.91486842]
[1763673833595,12.63486842,135.22,135.15,1.8]
[1763673833795,12.63486842,135.22,135.17,11.91486842]
[1763673834028,0.72,135.21,135.17,11.91486842]
[1763673834724,100.0,135.25,135.2,11.91486842]
[1763673834725,2.52,135.24,135.2,11.91486842]
[1763673834938,2.52,135.24,135.19,11.91486842]
[1763673835121,0.72,135.23,135.18,11.91486842]
[1763673835299,0.72,135.23,135.19,11.91486842]
[1763673835643,0.72,135.23,135.15,1.8]
[1763673835805,0.72,135.23,135.18,11.91486842]
[1763673835999,0.72,135.23,135.15,1.8]
[1763673836000,0.72,135.23,135.19,11.91486842]
[1763673836310,2.52,135.23,135.19,11.91486842]
[1763673836507,14.43486842,135.23,135.18,11.91486842]
[1763673836708,0.72,135.22,135.18,11.91486842]
[1763673836922,0.72,135.22,135.18,7.60865918]
[1763673837124,8.32865918,135.22,135.15,1.8]
[1763673837329,0.72,135.22,135.18,7.60865918]
[1763673837511,0.72,135.21,135.18,7.60865918]
[1763673839136,0.72,135.21,135.15,1.8]
[1763673839304,7.60865918,135.19,135.09,0.41]
[1763673839497,7.60865918,135.18,135.12,7.60865918]
[1763673839721,7.60865918,135.17,135.12,7.60865918]
[1763673839924,10.50882769,135.19,135.12,7.60865918]
[1763673840126,7.60865918,135.17,135.1,1.8]
[1763673840326,9.40865918,135.17,135.11,7.60865918]
[1763673840538,18.12096,135.19,135.14,7.60865918]
[1763673840703,0.72,135.17,135.14,7.60865918]
[1763673840899,0.72,135.17,135.13,7.60865918]
[1763673841132,8.32865918,135.17,135.09,0.2]
[1763673841341,7.60865918,135.16,135.1,7.60865918]
[1763673841513,0.72,135.16,135.1,7.60865918]
[1763673841834,0.72,135.15,135.09,63.2]
[1763673842033,0.72,135.15,135.1,7.60865918]
[1763673842221,0.72,135.15,135.12,7.60865918]
[1763673842904,0.72,135.15,135.11,7.60865918]
[1763673843621,0.72,135.15,135.13,7.60865918]
[1763673843803,0.72,135.15,135.11,7.60865918]
[1763673844234,0.72,135.15,135.09,0.2]
[1763673844416,0.72,135.15,135.11,7.60865918]
[1763673845205,0.72,135.15,135.1,7.60865918]
[1763673845404,0.72,135.15,135.11,7.60865918]
[1763673845627,0.72,135.15,135.12,7.60865918]
[1763673846812,50.72,135.2,135.14,7.60865918]
[1763673847046,0.72,135.2,135.17,7.60865918]
[1763673847224,0.72,135.19,135.15,7.60865918]
[1763673847909,0.72,135.19,135.16,7.60865918]
[1763673848110,8.32865918,135.19,135.13,7.60865918]
[1763673848412,8.32865918,135.19,135.14,7.60865918]
[1763673848413,0.72,135.19,135.14,7.60865918]
[1763673848611,0.72,135.19,135.15,7.60865918]
[1763673849014,0.72,135.19,135.1,2.01]
[1763673849015,8.32865918,135.19,135.1,2.01]
[1763673849219,8.32865918,135.19,135.14,7.60865918]
[1763673849437,18.12096,135.21,135.17,7.60865918]
[1763673849615,0.72,135.2,135.17,7.60865918]
[1763673849934,7.60865918,135.18,135.12,7.60865918]
[1763673850137,7.60865918,135.17,135.12,7.60865918]
[1763673850344,7.60865918,135.15,135.09,0.2]
[1763673850518,7.60865918,135.15,135.09,7.80865918]
[1763673850711,0.72,135.16,135.11,7.60865918]
[1763673850712,0.72,135.14,135.11,7.60865918]
[1763673851037,0.72,135.16,135.12,7.60865918]
[1763673851345,0.72,135.15,135.12,7.60865918]
[1763673851713,0.72,135.15,135.09,0.41]
[1763673852017,1.8,135.17,135.12,7.60865918]
[1763673852224,0.72,135.19,135.15,7.60865918]
[1763673852433,0.72,135.18,135.13,7.60865918]
[1763673852828,0.72,135.18,135.14,7.60865918]
[1763673853048,0.72,135.18,135.11,1.8]
[1763673853049,9.78882769,135.23,135.16,7.60865918]
[1763673853224,0.72,135.2,135.18,7.60865918]
[1763673853428,50.0,135.24,135.19,7.60865918]
[1763673853651,0.72,135.23,135.2,7.60865918]
[1763673854059,0.72,135.23,135.21,7.60865918]
[1763673854233,0.72,135.23,135.16,2.01]
[1763673854432,0.72,135.23,135.2,7.60865918]
[1763673855255,0.72,135.23,135.14,18.86093336]
[1763673855256,8.32865918,135.23,135.18,7.60865918]
[1763673855730,0.72,135.22,135.17,7.60865918]
[1763673855932,0.72,135.22,135.18,7.60865918]
[1763673856139,0.72,135.22,135.19,7.60865918]
[1763673856951,0.72,135.22,135.18,7.60865918]
[1763673858155,8.32865918,135.22,135.17,7.60865918]
[1763673858339,0.72,135.22,135.19,7.60865918]
[1763673860357,8.29865918,135.25,135.2,7.60865918]
[1763673860552,0.69,135.24,135.2,7.60865918]
[1763673860749,0.69,135.24,135.17,0.21]
[1763673860750,8.29865918,135.24,135.19,7.60865918]
[1763673860946,8.29865918,135.24,135.15,19.0708786]
[1763673861141,51.8,135.26,135.15,19.0708786]
[1763673861142,8.29865918,135.23,135.15,19.0708786]
[1763673861370,8.29865918,135.23,135.18,7.60865918]
[1763673861556,0.69,135.23,135.19,7.60865918]
[1763673861970,0.69,135.23,135.2,7.60865918]
[1763673862370,0.69,135.23,135.19,7.60865918]
[1763673864249,8.29865918,135.23,135.16,0.21]
[1763673864475,7.60865918,135.2,135.13,0.21]
[1763673864775,7.60865918,135.21,135.17,7.60865918]
[1763673864955,8.29865918,135.22,135.17,7.60865918]
[1763673865155,0.69,135.21,135.17,7.60865918]
[1763673865352,8.29865918,135.21,135.17,7.60865918]
[1763673865739,1.8,135.23,135.17,7.60865918]
[1763673865740,0.69,135.2,135.17,7.60865918]
[1763673866566,8.29865918,135.2,135.16,7.60865918]
[1763673866864,0.69,135.2,135.16,7.60865918]
[1763673867070,13.20942805,135.22,135.18,7.60865918]
[1763673867268,0.69,135.22,135.18,7.60865918]
[1763673867474,0.69,135.21,135.18,7.60865918]